[Event "Titled Tuesday Blitz July 18 Late 2023"]
[White "Berezin, Viktor"]
[Black "Mendez Fortes, Eduardo Jesus"]
[WhiteFideId "14107872"]
[BlackFideId "3502376"]
[WhiteElo "2517"]
[BlackElo "2636"]
[Result "0-1"]
[Round "7"]
[TimeControl "180+2"]
[Date "2023.07.18"]
[WhiteClock "0:00:00"]
[BlackClock "0:00:08"]
[Board "62"]

1. d4 {[%clk 0:02:55]}  Nf6 {[%clk 0:02:59]} 2. Nf3 {[%clk 0:02:53]}  d5 {[%clk 0:02:58]} 3. c4 {[%clk 0:02:53]}  e6 {[%clk 0:02:58]} 4. g3 {[%clk 0:02:51]}  dxc4 {[%clk 0:02:58]} 5. Qa4+ {[%clk 0:02:50]}  Nbd7 {[%clk 0:02:52]} 6. Qxc4 {[%clk 0:02:48]}  a6 {[%clk 0:02:52]} 7. Bg2 {[%clk 0:02:48]}  b5 {[%clk 0:02:50]} 8. Qc2 {[%clk 0:02:48]}  Bb7 {[%clk 0:02:47]} 9. O-O {[%clk 0:02:47]}  c5 {[%clk 0:02:46]} 10. dxc5 {[%clk 0:02:46]}  Nxc5 {[%clk 0:02:45]} 11. Rd1 {[%clk 0:02:35]}  Qc8 {[%clk 0:02:37]} 12. b3 {[%clk 0:02:22]}  Be7 {[%clk 0:02:36]} 13. Bb2 {[%clk 0:02:22]}  O-O {[%clk 0:02:35]} 14. Nbd2 {[%clk 0:02:19]}  Rd8 {[%clk 0:02:20]} 15. Rac1 {[%clk 0:02:18]}  Rd7 {[%clk 0:01:40]} 16. Be5 {[%clk 0:02:13]}  Qd8 {[%clk 0:01:36]} 17. Ng5 {[%clk 0:01:49]}  h6 {[%clk 0:01:19]} 18. Bxf6 {[%clk 0:01:47]}  Bxf6 {[%clk 0:01:18]} 19. Qh7+ {[%clk 0:00:57]}  Kf8 {[%clk 0:01:16]} 20. Bxb7 {[%clk 0:00:46]}  Nxb7 {[%clk 0:01:13]} 21. Nge4 {[%clk 0:00:41]}  Be5 {[%clk 0:01:08]} 22. Rc2 {[%clk 0:00:30]}  f5 {[%clk 0:00:54]} 23. Rdc1 {[%clk 0:00:20]}  fxe4 {[%clk 0:00:50]} 24. Nxe4 {[%clk 0:00:20]}  Kf7 {[%clk 0:00:43]} 25. Rc6 {[%clk 0:00:05]}  Qh8 {[%clk 0:00:34]} 26. Qxh8 {[%clk 0:00:05]}  Rxh8 {[%clk 0:00:34]} 27. Rxa6 {[%clk 0:00:06]}  Rhd8 {[%clk 0:00:32]} 28. Rcc6 {[%clk 0:00:06]}  Re7 {[%clk 0:00:29]} 29. Kg2 {[%clk 0:00:06]}  Rdd7 {[%clk 0:00:18]} 30. a4 {[%clk 0:00:06]}  bxa4 {[%clk 0:00:17]} 31. bxa4 {[%clk 0:00:07]}  Nd8 {[%clk 0:00:15]} 32. Rcb6 {[%clk 0:00:06]}  Bc7 {[%clk 0:00:14]} 33. Rb4 {[%clk 0:00:04]}  e5 {[%clk 0:00:12]} 34. Nc5 {[%clk 0:00:03]}  Rd5 {[%clk 0:00:13]} 35. Ne4 {[%clk 0:00:01]}  Ne6 {[%clk 0:00:12]} 36. Rc6 {[%clk 0:00:00]}  Ba5 {[%clk 0:00:08]} 0-1


[Site "https://www.chess.com"]

[Event "Titled Tuesday Blitz July 18 Late 2023"]
[White "CatLivesMatter"]
[Black "Leon Oquendo, Jorge"]
[BlackFideId "3514803"]
[WhiteElo "2501"]
[BlackElo "2628"]
[Result "1/2-1/2"]
[Round "7"]
[TimeControl "180+2"]
[Date "2023.07.18"]
[WhiteClock "0:00:17"]
[BlackClock "0:00:04"]
[Board "63"]

1. e4 {[%clk 0:03:00]}  c5 {[%clk 0:02:49]} 2. Nc3 {[%clk 0:03:01]}  a6 {[%clk 0:02:48]} 3. Nf3 {[%clk 0:03:01]}  b5 {[%clk 0:02:48]} 4. d4 {[%clk 0:03:01]}  cxd4 {[%clk 0:02:45]} 5. Nxd4 {[%clk 0:03:02]}  Bb7 {[%clk 0:02:46]} 6. Bd3 {[%clk 0:03:01]}  e6 {[%clk 0:02:45]} 7. O-O {[%clk 0:03:01]}  Qc7 {[%clk 0:02:40]} 8. Re1 {[%clk 0:02:57]}  Bd6 {[%clk 0:02:32]} 9. g3 {[%clk 0:02:47]}  h5 {[%clk 0:02:32]} 10. e5 {[%clk 0:02:39]}  Bxe5 {[%clk 0:02:22]} 11. Ndxb5 {[%clk 0:02:33]}  axb5 {[%clk 0:02:20]} 12. Nxb5 {[%clk 0:02:32]}  Qc6 {[%clk 0:02:06]} 13. Be4 {[%clk 0:02:31]}  Qxb5 {[%clk 0:02:06]} 14. c4 {[%clk 0:02:30]}  Qb6 {[%clk 0:01:54]} 15. Bxb7 {[%clk 0:02:25]}  Qxb7 {[%clk 0:01:55]} 16. Rxe5 {[%clk 0:02:25]}  Nc6 {[%clk 0:01:55]} 17. Re1 {[%clk 0:02:24]}  h4 {[%clk 0:01:54]} 18. b3 {[%clk 0:02:20]}  Nf6 {[%clk 0:01:50]} 19. Bg5 {[%clk 0:02:17]}  h3 {[%clk 0:01:48]} 20. Bxf6 {[%clk 0:02:13]}  gxf6 {[%clk 0:01:47]} 21. Qf3 {[%clk 0:02:10]}  Na5 {[%clk 0:01:30]} 22. Qxb7 {[%clk 0:01:29]}  Nxb7 {[%clk 0:01:30]} 23. b4 {[%clk 0:01:29]}  Ra3 {[%clk 0:01:20]} 24. Re3 {[%clk 0:01:21]}  Ra4 {[%clk 0:01:19]} 25. Rb3 {[%clk 0:01:19]}  Kd8 {[%clk 0:01:16]} 26. c5 {[%clk 0:01:17]}  Kc7 {[%clk 0:01:16]} 27. a3 {[%clk 0:01:15]}  Rha8 {[%clk 0:01:15]} 28. f3 {[%clk 0:01:14]}  Nd8 {[%clk 0:01:15]} 29. Kf2 {[%clk 0:01:14]}  Nc6 {[%clk 0:01:14]} 30. b5 {[%clk 0:01:10]}  Nd4 {[%clk 0:01:14]} 31. b6+ {[%clk 0:01:09]}  Kc6 {[%clk 0:01:04]} 32. Rd3 {[%clk 0:01:07]}  Kxc5 {[%clk 0:00:59]} 33. b7 {[%clk 0:01:03]}  Rb8 {[%clk 0:00:59]} 34. Rb1 {[%clk 0:00:56]}  d5 {[%clk 0:00:47]} 35. g4 {[%clk 0:00:53]}  Nc6 {[%clk 0:00:44]} 36. Kg3 {[%clk 0:00:52]}  Kd6 {[%clk 0:00:43]} 37. Kxh3 {[%clk 0:00:52]}  Kc7 {[%clk 0:00:43]} 38. Rdb3 {[%clk 0:00:52]}  Ra7 {[%clk 0:00:42]} 39. Kg3 {[%clk 0:00:52]}  Raxb7 {[%clk 0:00:42]} 40. Rxb7+ {[%clk 0:00:51]}  Rxb7 {[%clk 0:00:43]} 41. Ra1 {[%clk 0:00:50]}  Kd6 {[%clk 0:00:42]} 42. h4 {[%clk 0:00:50]}  d4 {[%clk 0:00:42]} 43. h5 {[%clk 0:00:50]}  Rb8 {[%clk 0:00:42]} 44. a4 {[%clk 0:00:49]}  Na5 {[%clk 0:00:40]} 45. Kf4 {[%clk 0:00:49]}  Kd5 {[%clk 0:00:39]} 46. h6 {[%clk 0:00:35]}  Rh8 {[%clk 0:00:38]} 47. Rb1 {[%clk 0:00:35]}  Nc6 {[%clk 0:00:37]} 48. Rb5+ {[%clk 0:00:29]}  Kd6 {[%clk 0:00:37]} 49. g5 {[%clk 0:00:25]}  fxg5+ {[%clk 0:00:36]} 50. Kxg5 {[%clk 0:00:25]}  Rg8+ {[%clk 0:00:21]} 51. Kh5 {[%clk 0:00:21]}  Rg1 {[%clk 0:00:22]} 52. a5 {[%clk 0:00:15]}  Rh1+ {[%clk 0:00:22]} 53. Kg5 {[%clk 0:00:15]}  d3 {[%clk 0:00:20]} 54. Rb3 {[%clk 0:00:15]}  Ne5 {[%clk 0:00:12]} 55. f4 {[%clk 0:00:15]}  Nf3+ {[%clk 0:00:11]} 56. Kg4 {[%clk 0:00:16]}  d2 {[%clk 0:00:11]} 57. Rd3+ {[%clk 0:00:15]}  Kc6 {[%clk 0:00:10]} 58. h7 {[%clk 0:00:11]}  Rxh7 {[%clk 0:00:08]} 59. Kxf3 {[%clk 0:00:11]}  Rh2 {[%clk 0:00:07]} 60. Ke3 {[%clk 0:00:11]}  Kb5 {[%clk 0:00:06]} 61. Rxd2 {[%clk 0:00:11]}  Rxd2 {[%clk 0:00:06]} 62. Kxd2 {[%clk 0:00:12]}  Kxa5 {[%clk 0:00:07]} 63. Ke3 {[%clk 0:00:13]}  Kb5 {[%clk 0:00:07]} 64. Ke4 {[%clk 0:00:14]}  f6 {[%clk 0:00:07]} 65. f5 {[%clk 0:00:11]}  e5 {[%clk 0:00:07]} 66. Kd5 {[%clk 0:00:11]}  Kb6 {[%clk 0:00:04]} 67. Ke6 {[%clk 0:00:11]}  e4 {[%clk 0:00:05]} 68. Kxf6 {[%clk 0:00:12]}  e3 {[%clk 0:00:06]} 69. Kg7 {[%clk 0:00:13]}  e2 {[%clk 0:00:06]} 70. f6 {[%clk 0:00:14]}  e1=Q {[%clk 0:00:07]} 71. f7 {[%clk 0:00:14]}  Qe5+ {[%clk 0:00:07]} 72. Kg8 {[%clk 0:00:15]}  Qg5+ {[%clk 0:00:07]} 73. Kh8 {[%clk 0:00:15]}  Qf6+ {[%clk 0:00:07]} 74. Kg8 {[%clk 0:00:15]}  Qg6+ {[%clk 0:00:08]} 75. Kh8 {[%clk 0:00:16]}  Qh5+ {[%clk 0:00:08]} 76. Kg8 {[%clk 0:00:16]}  Qd5 {[%clk 0:00:08]} 77. Kh8 {[%clk 0:00:16]}  Qd4+ {[%clk 0:00:07]} 78. Kg8 {[%clk 0:00:16]}  Qd5 {[%clk 0:00:07]} 79. Kh8 {[%clk 0:00:16]}  Qd6 {[%clk 0:00:08]} 80. Kg8 {[%clk 0:00:16]}  Qe6 {[%clk 0:00:08]} 81. Kh8 {[%clk 0:00:16]}  Qe7 {[%clk 0:00:08]} 82. Kg8 {[%clk 0:00:16]}  Qe6 {[%clk 0:00:09]} 83. Kh8 {[%clk 0:00:17]}  Qf6+ {[%clk 0:00:04]} 84. Kg8 {[%clk 0:00:17]}  Qe6 {[%clk 0:00:04]} 1/2-1/2


[Site "https://www.chess.com"]

[Event "Titled Tuesday Blitz July 18 Late 2023"]
[White "Ovchinnikov, Vsevolod"]
[Black "Kleiman, Jake"]
[WhiteFideId "24176842"]
[BlackFideId "2020041"]
[WhiteElo "2626"]
[BlackElo "2497"]
[Result "1-0"]
[Round "7"]
[TimeControl "180+2"]
[Date "2023.07.18"]
[WhiteClock "0:00:19"]
[BlackClock "0:00:12"]
[Board "64"]

1. d4 {[%clk 0:03:00]}  Nf6 {[%clk 0:02:59]} 2. c4 {[%clk 0:03:01]}  e6 {[%clk 0:03:00]} 3. g3 {[%clk 0:03:01]}  Bb4+ {[%clk 0:03:00]} 4. Bd2 {[%clk 0:03:01]}  Bxd2+ {[%clk 0:03:00]} 5. Nxd2 {[%clk 0:02:59]}  O-O {[%clk 0:03:01]} 6. Bg2 {[%clk 0:03:00]}  d6 {[%clk 0:03:02]} 7. e4 {[%clk 0:03:00]}  e5 {[%clk 0:03:02]} 8. Ne2 {[%clk 0:03:00]}  c5 {[%clk 0:03:01]} 9. d5 {[%clk 0:02:58]}  a6 {[%clk 0:02:56]} 10. a4 {[%clk 0:02:53]}  a5 {[%clk 0:02:53]} 11. h3 {[%clk 0:02:53]}  Na6 {[%clk 0:02:53]} 12. O-O {[%clk 0:02:53]}  Nb4 {[%clk 0:02:53]} 13. f4 {[%clk 0:02:48]}  Re8 {[%clk 0:02:44]} 14. b3 {[%clk 0:02:38]}  b6 {[%clk 0:02:32]} 15. Kh2 {[%clk 0:02:33]}  h6 {[%clk 0:02:30]} 16. Nc3 {[%clk 0:02:28]}  Ra7 {[%clk 0:02:26]} 17. f5 {[%clk 0:02:19]}  Nh7 {[%clk 0:02:19]} 18. Nf3 {[%clk 0:02:10]}  Ng5 {[%clk 0:02:18]} 19. Nh4 {[%clk 0:02:06]}  Qf6 {[%clk 0:02:16]} 20. Qd2 {[%clk 0:02:05]}  Rae7 {[%clk 0:02:11]} 21. Rf2 {[%clk 0:02:05]}  Bd7 {[%clk 0:02:10]} 22. Raf1 {[%clk 0:02:03]}  Rd8 {[%clk 0:02:08]} 23. Nd1 {[%clk 0:01:59]}  Ree8 {[%clk 0:01:37]} 24. Ne3 {[%clk 0:01:59]}  Rc8 {[%clk 0:01:19]} 25. Qe2 {[%clk 0:01:14]}  Rb8 {[%clk 0:01:10]} 26. Ng4 {[%clk 0:01:00]}  Qd8 {[%clk 0:01:10]} 27. f6 {[%clk 0:01:01]}  Bxg4 {[%clk 0:01:08]} 28. Qxg4 {[%clk 0:01:01]}  g6 {[%clk 0:01:08]} 29. Nxg6 {[%clk 0:00:39]}  Kh7 {[%clk 0:00:58]} 30. Ne7 {[%clk 0:00:32]}  Nd3 {[%clk 0:00:42]} 31. Rf5 {[%clk 0:00:31]}  Rg8 {[%clk 0:00:36]} 32. Qe2 {[%clk 0:00:20]}  Nb4 {[%clk 0:00:30]} 33. h4 {[%clk 0:00:20]}  Ne6 {[%clk 0:00:14]} 34. dxe6 {[%clk 0:00:21]}  fxe6 {[%clk 0:00:15]} 35. Rh5 {[%clk 0:00:22]}  Qe8 {[%clk 0:00:15]} 36. Bh3 {[%clk 0:00:18]}  Qf7 {[%clk 0:00:14]} 37. Nxg8 {[%clk 0:00:17]}  Rxg8 {[%clk 0:00:14]} 38. g4 {[%clk 0:00:18]}  Rg6 {[%clk 0:00:13]} 39. g5 {[%clk 0:00:18]}  Nc6 {[%clk 0:00:14]} 40. Rxh6+ {[%clk 0:00:17]}  Rxh6 {[%clk 0:00:14]} 41. gxh6 {[%clk 0:00:18]}  Nd4 {[%clk 0:00:14]} 42. Qe3 {[%clk 0:00:19]}  Nc2 {[%clk 0:00:13]} 43. Qd3 {[%clk 0:00:18]}  Nd4 {[%clk 0:00:13]} 44. Qg3 {[%clk 0:00:19]}  Kxh6 {[%clk 0:00:12]} 45. Qg5+ {[%clk 0:00:18]}  Kh7 {[%clk 0:00:13]} 46. h5 {[%clk 0:00:18]}  Kh8 {[%clk 0:00:11]} 47. Rf2 {[%clk 0:00:18]}  Kh7 {[%clk 0:00:11]} 48. h6 {[%clk 0:00:17]}  Kh8 {[%clk 0:00:11]} 49. Qg7+ {[%clk 0:00:17]}  Qxg7 {[%clk 0:00:12]} 50. fxg7+ {[%clk 0:00:18]}  Kg8 {[%clk 0:00:12]} 51. Rf8+ {[%clk 0:00:18]}  Kh7 {[%clk 0:00:12]} 52. g8=Q+ {[%clk 0:00:19]} 1-0


[Site "https://www.chess.com"]

[Event "Titled Tuesday Blitz July 18 Late 2023"]
[White "JERO-8914"]
[Black "Medarde Santiago, Luis Marcos"]
[BlackFideId "2263076"]
[WhiteElo "2495"]
[BlackElo "2610"]
[Result "0-1"]
[Round "7"]
[TimeControl "180+2"]
[Date "2023.07.18"]
[WhiteClock "0:01:54"]
[BlackClock "0:02:08"]
[Board "65"]

1. c4 {[%clk 0:03:00]}  c6 {[%clk 0:02:56]} 2. d4 {[%clk 0:03:00]}  d5 {[%clk 0:02:57]} 3. Nf3 {[%clk 0:03:00]}  Nf6 {[%clk 0:02:58]} 4. Nc3 {[%clk 0:03:00]}  e6 {[%clk 0:02:58]} 5. Bg5 {[%clk 0:02:59]}  dxc4 {[%clk 0:02:58]} 6. e4 {[%clk 0:02:57]}  b5 {[%clk 0:02:58]} 7. e5 {[%clk 0:02:57]}  h6 {[%clk 0:02:59]} 8. Bh4 {[%clk 0:02:57]}  g5 {[%clk 0:02:59]} 9. Nxg5 {[%clk 0:02:58]}  hxg5 {[%clk 0:02:59]} 10. Bxg5 {[%clk 0:02:58]}  Nbd7 {[%clk 0:03:00]} 11. exf6 {[%clk 0:02:51]}  Bb7 {[%clk 0:02:59]} 12. Be2 {[%clk 0:02:47]}  Nxf6 {[%clk 0:02:38]} 13. O-O {[%clk 0:02:47]}  Be7 {[%clk 0:02:38]} 14. Bf3 {[%clk 0:02:47]}  Nd5 {[%clk 0:02:35]} 15. Bxe7 {[%clk 0:02:44]}  Qxe7 {[%clk 0:02:36]} 16. Re1 {[%clk 0:02:44]}  O-O-O {[%clk 0:02:30]} 17. Ne4 {[%clk 0:02:44]}  Nf4 {[%clk 0:02:27]} 18. Nc5 {[%clk 0:02:42]}  Qh4 {[%clk 0:02:17]} 19. g3 {[%clk 0:02:00]}  Qxh2+ {[%clk 0:02:07]} 20. Kf1 {[%clk 0:01:54]}  Qh1+ {[%clk 0:02:08]} 0-1


[Site "https://www.chess.com"]

[Event "Titled Tuesday Blitz July 18 Late 2023"]
[White "Delorme, Axel"]
[Black "Gaitan, Juan Manuel"]
[WhiteFideId "632023"]
[BlackFideId "121657"]
[WhiteElo "2453"]
[BlackElo "2610"]
[Result "0-1"]
[Round "7"]
[TimeControl "180+2"]
[Date "2023.07.18"]
[WhiteClock "0:00:36"]
[BlackClock "0:01:29"]
[Board "66"]

1. e4 {[%clk 0:02:57]}  e6 {[%clk 0:02:49]} 2. d4 {[%clk 0:02:56]}  d5 {[%clk 0:02:50]} 3. Nc3 {[%clk 0:02:57]}  Nf6 {[%clk 0:02:48]} 4. e5 {[%clk 0:02:58]}  Nfd7 {[%clk 0:02:48]} 5. f4 {[%clk 0:02:58]}  c5 {[%clk 0:02:49]} 6. Nf3 {[%clk 0:02:58]}  Nc6 {[%clk 0:02:49]} 7. Be3 {[%clk 0:02:59]}  Qb6 {[%clk 0:02:50]} 8. Na4 {[%clk 0:02:58]}  Qa5+ {[%clk 0:02:50]} 9. c3 {[%clk 0:02:58]}  b6 {[%clk 0:02:50]} 10. Bd2 {[%clk 0:02:58]}  c4 {[%clk 0:02:45]} 11. b4 {[%clk 0:02:57]}  Nxb4 {[%clk 0:02:45]} 12. cxb4 {[%clk 0:02:57]}  Bxb4 {[%clk 0:02:46]} 13. Bxb4 {[%clk 0:02:45]}  Qxb4+ {[%clk 0:02:46]} 14. Kf2 {[%clk 0:02:41]}  b5 {[%clk 0:02:41]} 15. Nc5 {[%clk 0:02:36]}  Nxc5 {[%clk 0:02:39]} 16. dxc5 {[%clk 0:02:36]}  Qxc5+ {[%clk 0:02:39]} 17. Qd4 {[%clk 0:02:35]}  Qxd4+ {[%clk 0:02:38]} 18. Nxd4 {[%clk 0:02:35]}  Bd7 {[%clk 0:02:38]} 19. Rb1 {[%clk 0:02:33]}  Rb8 {[%clk 0:02:38]} 20. Be2 {[%clk 0:02:27]}  Ke7 {[%clk 0:02:37]} 21. Ke3 {[%clk 0:02:27]}  b4 {[%clk 0:02:34]} 22. Rb2 {[%clk 0:02:21]}  Rb6 {[%clk 0:02:34]} 23. Rhb1 {[%clk 0:02:19]}  Rhb8 {[%clk 0:02:34]} 24. Nc2 {[%clk 0:02:14]}  a5 {[%clk 0:02:31]} 25. a3 {[%clk 0:02:00]}  c3 {[%clk 0:02:28]} 26. Rb3 {[%clk 0:01:51]}  Ba4 {[%clk 0:02:28]} 27. axb4 {[%clk 0:01:47]}  Bxb3 {[%clk 0:02:29]} 28. Rxb3 {[%clk 0:01:45]}  axb4 {[%clk 0:02:28]} 29. Kd4 {[%clk 0:01:45]}  f6 {[%clk 0:02:24]} 30. Kc5 {[%clk 0:01:42]}  fxe5 {[%clk 0:02:17]} 31. fxe5 {[%clk 0:01:36]}  R6b7 {[%clk 0:02:15]} 32. Ba6 {[%clk 0:01:23]}  Ra7 {[%clk 0:02:12]} 33. Bd3 {[%clk 0:01:11]}  Rc7+ {[%clk 0:02:06]} 34. Kd4 {[%clk 0:01:10]}  Rcb7 {[%clk 0:02:04]} 35. Kc5 {[%clk 0:01:02]}  g6 {[%clk 0:01:58]} 36. Rxb4 {[%clk 0:01:00]}  Rxb4 {[%clk 0:01:43]} 37. Nxb4 {[%clk 0:01:01]}  Rf8 {[%clk 0:01:43]} 38. Nc2 {[%clk 0:00:47]}  Rf2 {[%clk 0:01:41]} 39. Ne3 {[%clk 0:00:48]}  Rd2 {[%clk 0:01:37]} 40. Kd4 {[%clk 0:00:40]}  c2 {[%clk 0:01:33]} 41. Nxc2 {[%clk 0:00:40]}  Rxg2 {[%clk 0:01:33]} 42. h3 {[%clk 0:00:38]}  Rh2 {[%clk 0:01:29]} 43. Bf1 {[%clk 0:00:36]}  Rxc2 {[%clk 0:01:29]} 0-1


[Site "https://www.chess.com"]

[Event "Titled Tuesday Blitz July 18 Late 2023"]
[White "Tarhan, Adar"]
[Black "Silva Lucena, Cristian"]
[WhiteFideId "34544712"]
[BlackFideId "2232588"]
[WhiteElo "2601"]
[BlackElo "2410"]
[Result "0-1"]
[Round "7"]
[TimeControl "180+2"]
[Date "2023.07.18"]
[WhiteClock "0:00:52"]
[BlackClock "0:00:32"]
[Board "67"]

1. d4 {[%clk 0:03:00]}  Nf6 {[%clk 0:02:58]} 2. Bg5 {[%clk 0:02:58]}  d5 {[%clk 0:02:56]} 3. Nd2 {[%clk 0:02:56]}  e6 {[%clk 0:02:56]} 4. e4 {[%clk 0:02:55]}  dxe4 {[%clk 0:02:56]} 5. Nxe4 {[%clk 0:02:56]}  Be7 {[%clk 0:02:56]} 6. Bxf6 {[%clk 0:02:54]}  gxf6 {[%clk 0:02:57]} 7. g3 {[%clk 0:02:52]}  a6 {[%clk 0:02:57]} 8. Bg2 {[%clk 0:02:53]}  f5 {[%clk 0:02:58]} 9. Nc3 {[%clk 0:02:52]}  Qd6 {[%clk 0:02:54]} 10. Nge2 {[%clk 0:02:51]}  Qb6 {[%clk 0:02:54]} 11. O-O {[%clk 0:02:45]}  Qxb2 {[%clk 0:02:48]} 12. d5 {[%clk 0:02:42]}  Qa3 {[%clk 0:02:40]} 13. Rb1 {[%clk 0:02:36]}  c6 {[%clk 0:02:34]} 14. dxc6 {[%clk 0:02:33]}  Nxc6 {[%clk 0:02:27]} 15. Rb3 {[%clk 0:02:30]}  Qd6 {[%clk 0:02:23]} 16. Qa1 {[%clk 0:02:31]}  O-O {[%clk 0:02:22]} 17. Rd1 {[%clk 0:02:30]}  Qc7 {[%clk 0:02:21]} 18. Nf4 {[%clk 0:02:27]}  Bf6 {[%clk 0:02:20]} 19. Ncd5 {[%clk 0:02:22]}  exd5 {[%clk 0:02:01]} 20. Qxf6 {[%clk 0:02:21]}  Qe5 {[%clk 0:02:02]} 21. Nxd5 {[%clk 0:02:14]}  Qxf6 {[%clk 0:02:01]} 22. Nxf6+ {[%clk 0:02:15]}  Kg7 {[%clk 0:02:02]} 23. Nh5+ {[%clk 0:02:14]}  Kh6 {[%clk 0:02:00]} 24. Rd6+ {[%clk 0:02:12]}  Be6 {[%clk 0:01:58]} 25. Nf4 {[%clk 0:02:09]}  Rfd8 {[%clk 0:01:57]} 26. Rxd8 {[%clk 0:01:57]}  Rxd8 {[%clk 0:01:58]} 27. h4 {[%clk 0:01:58]}  Bxb3 {[%clk 0:01:55]} 28. axb3 {[%clk 0:01:55]}  Rd2 {[%clk 0:01:53]} 29. c4 {[%clk 0:01:52]}  Rb2 {[%clk 0:01:53]} 30. Bd5 {[%clk 0:01:50]}  Rxb3 {[%clk 0:01:53]} 31. Bxf7 {[%clk 0:01:49]}  Rb1+ {[%clk 0:01:53]} 32. Kg2 {[%clk 0:01:49]}  a5 {[%clk 0:01:52]} 33. Ne6 {[%clk 0:01:49]}  Ne5 {[%clk 0:01:46]} 34. Be8 {[%clk 0:01:44]}  Nxc4 {[%clk 0:01:38]} 35. f3 {[%clk 0:01:43]}  Re1 {[%clk 0:01:38]} 36. Bf7 {[%clk 0:01:37]}  Nd6 {[%clk 0:01:29]} 37. Bg8 {[%clk 0:01:36]}  Re2+ {[%clk 0:01:20]} 38. Kf1 {[%clk 0:01:34]}  Re3 {[%clk 0:01:19]} 39. Kf2 {[%clk 0:01:34]}  Rc3 {[%clk 0:01:10]} 40. g4 {[%clk 0:01:33]}  fxg4 {[%clk 0:01:09]} 41. fxg4 {[%clk 0:01:34]}  a4 {[%clk 0:01:09]} 42. g5+ {[%clk 0:01:16]}  Kh5 {[%clk 0:01:09]} 43. Bxh7 {[%clk 0:01:16]}  Kxh4 {[%clk 0:01:07]} 44. g6 {[%clk 0:01:16]}  Nf5 {[%clk 0:01:07]} 45. Nd4 {[%clk 0:01:01]}  Ng7 {[%clk 0:00:40]} 46. Bg8 {[%clk 0:01:00]}  a3 {[%clk 0:00:37]} 47. Ne6 {[%clk 0:00:59]}  Nxe6 {[%clk 0:00:34]} 48. Bxe6 {[%clk 0:00:59]}  Rg3 {[%clk 0:00:35]} 49. Bf7 {[%clk 0:00:58]}  b5 {[%clk 0:00:34]} 50. Ke2 {[%clk 0:00:57]}  b4 {[%clk 0:00:35]} 51. Kd2 {[%clk 0:00:58]}  b3 {[%clk 0:00:35]} 52. g7 {[%clk 0:00:57]}  a2 {[%clk 0:00:33]} 53. Bg6 {[%clk 0:00:52]}  Rxg6 {[%clk 0:00:32]} 0-1


[Site "https://www.chess.com"]

[Event "Titled Tuesday Blitz July 18 Late 2023"]
[White "Adewumi, Tanitoluwa"]
[Black "Willy, Stephen"]
[WhiteFideId "30966396"]
[BlackFideId "30981468"]
[WhiteElo "2646"]
[BlackElo "2408"]
[Result "0-1"]
[Round "7"]
[TimeControl "180+2"]
[Date "2023.07.18"]
[WhiteClock "0:00:00"]
[BlackClock "0:00:19"]
[Board "69"]

1. Nf3 {[%clk 0:03:00]}  c5 {[%clk 0:02:55]} 2. g3 {[%clk 0:02:59]}  d5 {[%clk 0:02:54]} 3. Bg2 {[%clk 0:03:00]}  Nf6 {[%clk 0:02:54]} 4. O-O {[%clk 0:03:01]}  Nc6 {[%clk 0:02:53]} 5. b3 {[%clk 0:03:01]}  e5 {[%clk 0:02:52]} 6. Bb2 {[%clk 0:03:01]}  Bd6 {[%clk 0:02:52]} 7. c4 {[%clk 0:03:01]}  d4 {[%clk 0:02:40]} 8. d3 {[%clk 0:03:02]}  O-O {[%clk 0:02:40]} 9. Bc1 {[%clk 0:03:02]}  e4 {[%clk 0:02:34]} 10. dxe4 {[%clk 0:03:01]}  Nxe4 {[%clk 0:02:35]} 11. Nxd4 {[%clk 0:03:01]}  Nxd4 {[%clk 0:02:29]} 12. Bxe4 {[%clk 0:03:01]}  Qf6 {[%clk 0:02:28]} 13. Nc3 {[%clk 0:02:40]}  Bg4 {[%clk 0:02:19]} 14. Bb2 {[%clk 0:02:08]}  Rae8 {[%clk 0:02:14]} 15. Re1 {[%clk 0:02:06]}  Be5 {[%clk 0:02:03]} 16. Rc1 {[%clk 0:01:20]}  h5 {[%clk 0:01:28]} 17. Nd5 {[%clk 0:01:15]}  Qd8 {[%clk 0:01:22]} 18. Qd3 {[%clk 0:00:57]}  Nxe2+ {[%clk 0:01:11]} 19. Rxe2 {[%clk 0:00:57]}  Bxe2 {[%clk 0:01:11]} 20. Qxe2 {[%clk 0:00:51]}  Bxb2 {[%clk 0:01:11]} 21. Re1 {[%clk 0:00:50]}  Bd4 {[%clk 0:01:07]} 22. Qxh5 {[%clk 0:00:49]}  f5 {[%clk 0:00:59]} 23. Nf6+ {[%clk 0:00:14]}  Bxf6 {[%clk 0:00:33]} 24. Bd5+ {[%clk 0:00:14]}  Qxd5 {[%clk 0:00:33]} 25. cxd5 {[%clk 0:00:14]}  Rxe1+ {[%clk 0:00:33]} 26. Kg2 {[%clk 0:00:14]}  Ree8 {[%clk 0:00:28]} 27. f4 {[%clk 0:00:11]}  Bd4 {[%clk 0:00:26]} 28. Qg6 {[%clk 0:00:10]}  Re2+ {[%clk 0:00:21]} 29. Kh3 {[%clk 0:00:00]}  Rf6 {[%clk 0:00:19]} 0-1


[Site "https://www.chess.com"]

[Event "Titled Tuesday Blitz July 18 Late 2023"]
[White "Mujumdar, Sameer"]
[Black "Stoyanov, Tsvetan"]
[WhiteFideId "2029707"]
[BlackFideId "2917173"]
[WhiteElo "2464"]
[BlackElo "2716"]
[Result "0-1"]
[Round "7"]
[TimeControl "180+2"]
[Date "2023.07.18"]
[WhiteClock "0:00:53"]
[BlackClock "0:00:14"]
[Board "70"]

1. d4 {[%clk 0:03:00]}  d5 {[%clk 0:02:59]} 2. Nf3 {[%clk 0:03:00]}  Nf6 {[%clk 0:02:59]} 3. Bf4 {[%clk 0:03:00]}  c5 {[%clk 0:02:59]} 4. e3 {[%clk 0:03:01]}  Nc6 {[%clk 0:03:00]} 5. Nbd2 {[%clk 0:03:00]}  Nh5 {[%clk 0:03:00]} 6. Bg5 {[%clk 0:02:56]}  h6 {[%clk 0:02:59]} 7. Bh4 {[%clk 0:02:56]}  g5 {[%clk 0:02:58]} 8. Bg3 {[%clk 0:02:57]}  g4 {[%clk 0:02:57]} 9. Ne5 {[%clk 0:02:54]}  Nxg3 {[%clk 0:02:57]} 10. Nxc6 {[%clk 0:02:49]}  bxc6 {[%clk 0:02:58]} 11. hxg3 {[%clk 0:02:49]}  Qb6 {[%clk 0:02:59]} 12. dxc5 {[%clk 0:02:39]}  Qxb2 {[%clk 0:02:58]} 13. Rb1 {[%clk 0:02:37]}  Qc3 {[%clk 0:02:57]} 14. Rb3 {[%clk 0:02:31]}  Qxc5 {[%clk 0:02:56]} 15. Be2 {[%clk 0:02:28]}  h5 {[%clk 0:02:51]} 16. c4 {[%clk 0:02:27]}  Bg7 {[%clk 0:02:43]} 17. cxd5 {[%clk 0:02:26]}  Qxd5 {[%clk 0:02:41]} 18. O-O {[%clk 0:02:24]}  O-O {[%clk 0:02:32]} 19. Bc4 {[%clk 0:02:19]}  Qe5 {[%clk 0:02:29]} 20. Qc2 {[%clk 0:02:05]}  Bf5 {[%clk 0:02:27]} 21. Bd3 {[%clk 0:02:06]}  Be6 {[%clk 0:02:24]} 22. Bc4 {[%clk 0:01:58]}  Rfd8 {[%clk 0:02:12]} 23. Bxe6 {[%clk 0:01:51]}  Qxe6 {[%clk 0:02:13]} 24. Ne4 {[%clk 0:01:46]}  Qg6 {[%clk 0:02:10]} 25. Rb7 {[%clk 0:01:43]}  Kf8 {[%clk 0:01:48]} 26. Rc1 {[%clk 0:01:41]}  a5 {[%clk 0:01:18]} 27. Qc4 {[%clk 0:01:33]}  a4 {[%clk 0:01:03]} 28. Nc5 {[%clk 0:01:30]}  Qd6 {[%clk 0:00:57]} 29. Qc2 {[%clk 0:01:23]}  Qd2 {[%clk 0:00:37]} 30. Qc4 {[%clk 0:01:22]}  a3 {[%clk 0:00:30]} 31. Ne4 {[%clk 0:01:14]}  Qd5 {[%clk 0:00:29]} 32. Qc2 {[%clk 0:01:08]}  Bb2 {[%clk 0:00:26]} 33. Rxb2 {[%clk 0:01:05]}  axb2 {[%clk 0:00:25]} 34. Qxb2 {[%clk 0:01:05]}  Kg8 {[%clk 0:00:21]} 35. f3 {[%clk 0:01:02]}  Rxa2 {[%clk 0:00:19]} 36. Qb6 {[%clk 0:01:00]}  gxf3 {[%clk 0:00:15]} 37. Rc5 {[%clk 0:00:53]}  Rxg2+ {[%clk 0:00:14]} 0-1


[Site "https://www.chess.com"]